Cogmind - Beta 11.1 @@@ ROGUE MODE // 2022.06.22 @ 22:07:09 Player: ChromeKnight Result: Destroyed by D-53 Grenadier with Mini Grenade Launcher Performance ------------- Evolutions (0) 0 Regions Visited (4) 800 Robots Destroyed (28) 140 Value Destroyed (720) 720 Prototype IDs (23) 460 Alien Tech Used (0) 0 Bonus (21) 21 TOTAL SCORE: 2141 Bonus ------- Follower Combat Kills 21 Cogmind --------- Core Integrity 0/250 Matter 300/300 Energy 121/125 System Corruption 3% Temperature Warm (132) Movement Walking (120) Location -9/Mines Parts ------- > --- POWER (1) -------- Light Ion Engine > --- PROPULSION (2) --- Aluminum Leg Carbon-fiber Leg > --- UTILITY (2) ------ Medium Storage Unit Visual Processing Unit > --- WEAPON (2) ------- Makeshift Hammer > --- INVENTORY (10) --- Makeshift Sensor Array Makeshift Terrain Scanner Makeshift Terrain Scan Processor Target Analyzer Makeshift Transmission Jammer Light Armor Plating Authchip [Device] Authchip [Weapon] YOLO Cannon Peak State ------------ > --- POWER ------------ Light Ion Engine > --- PROPULSION ------- Aluminum Leg Carbon-fiber Leg > --- UTILITY ---------- Medium Storage Unit Visual Processing Unit > --- WEAPON ----------- Makeshift Hammer > --- INVENTORY -------- Makeshift Sensor Array Makeshift Terrain Scanner Makeshift Terrain Scan Processor Target Analyzer Makeshift Transmission Jammer Light Armor Plating Authchip [Device] Authchip [Weapon] YOLO Cannon [Rating: 17] Favorites ----------- Power Light Ion Engine Engine Light Ion Engine Power Core Light Nuclear Core Propulsion Aluminum Leg Treads Light Treads Leg Aluminum Leg Utility Visual Processing Unit Storage Medium Storage Unit Processor Visual Processing Unit Weapon Light Assault Rifle Ballistic Gun Light Assault Rifle Impact Weapon Makeshift Hammer Build | -11 -10 -10 -10 -9 ------- Run | Scr Mat Min Exi Min Slots Evolved . | . . . . . Power . | . . . . . Propulsion . | . . . . . Utility . | . . . . . Weapon . | . . . . . Parts Attached 39 | 9 12 12 6 . Power 5 | 1 2 2 . . Engine 4 | 1 1 2 . . Core 1 | . 1 . . . Reactor . | . . . . . Propulsion 22 | 4 5 8 5 . Treads 2 | 2 . . . . Leg 20 | 2 5 8 5 . Wheel . | . . . . . Hover . | . . . . . Flight . | . . . . . Utility 4 | 1 3 . . . Device . | . . . . . Storage 2 | 1 1 . . . Processor 2 | . 2 . . . Hackware . | . . . . . Protection . | . . . . . Artifact . | . . . . . Weapon 8 | 3 2 2 1 . Energy Gun . | . . . . . Energy Cannon . | . . . . . Ballistic Gun 7 | 3 2 2 . . Ballistic Cannon . | . . . . . Launcher . | . . . . . Special Weapon . | . . . . . Impact Weapon 1 | . . . 1 . Slashing Weapon . | . . . . . Piercing Weapon . | . . . . . Special Melee Weapon . | . . . . . Unidentified Prototypes . | . . . . . Parts Lost 3 | . 1 2 . . Power 2 | . 1 1 . . Propulsion . | . . . . . Utility . | . . . . . Weapon 1 | . . 1 . . Highest Loss Streak 1 | . 1 1 . . To Critical Strikes . | . . . . . Average Slot Usage (%) 96 | . 96 95 99 85 Engine 10 | . 5 13 14 14 Core 2 | . 7 . . . Leg 27 | . 27 28 28 28 Storage 14 | . 14 14 14 14 Processor 13 | . 12 14 14 14 Ballistic Gun 26 | . 28 24 26 . Naked Turns . | . . . . . Heaviest Build 18 | 14 18 18 16 16 Greatest Support 40 | 40 20 20 25 25 Greatest Overweight (x) 1 | 1 . . . . Average Overweight (x) . | . . . . . Largest Inventory Capacity 10 | 8 10 10 10 10 Average Capacity 9 | 6 8 10 10 10 Most Carried 10 | 1 8 10 10 10 Average Carried 8 | . 6 9 9 10 Final Capacity 10 | 8 10 10 10 10 Final Carried 10 | 1 8 10 10 10 Class Distribution -------------------- 78% | Scavenger-Mutant 21% | Mutant Dominant Class ---------------- Scavenger-Mutant | -10/Materials Scavenger-Mutant | -10/Mines Scavenger-Mutant | -10/Exiles Scavenger-Mutant | -9/Mines Resources | -11 -10 -10 -10 -9 ----------- Run | Scr Mat Min Exi Min Matter Collected 1116 | 236 525 249 96 10 Remotely . | . . . . . Salvage Created 1218 | . 680 387 151 . Parts 74 | . 41 23 10 . Haulers Intercepted 1 | . 1 . . . Recyclers Shooed 1 | . 1 . . . Parts Field Recycled . | . . . . . Retrieved Matter . | . . . . . Parts Self-Destructed . | . . . . . Prevented . | . . . . . Kills | -11 -10 -10 -10 -9 ------- Run | Scr Mat Min Exi Min Combat Hostiles Destroyed 19 | . 10 9 . . Guns 19 | . 10 9 . . Classes Destroyed 8 | . 7 1 . . Worker 1 | . 1 . . . Tunneler 1 | . 1 . . . Hauler 1 | . 1 . . . Recycler 2 | . 1 1 . . Operator 2 | . 2 . . . Watcher 2 | . 2 . . . Swarmer 2 | . . 2 . . Grunt 17 | . 10 7 . . Best Kill Streak 4 | . 4 4 . . Combat Bots Only 4 | . 2 4 . . Max Kills in Single Turn 2 | . 2 1 . . Gunslinging 1 | . 1 . . . Exploded . | . . . . . Melee . | . . . . . Uniques/NPCs Destroyed . | . . . . . Combat | -11 -10 -10 -10 -9 -------- Run | Scr Mat Min Exi Min Damage Taken 1195 | . 410 688 . 97 Core 275 | . 78 156 . 41 Absorbed by Shields . | . . . . . Core Remaining (%) 100 | 100 . . . . Volleys Fired 128 | . 60 54 14 . Largest 2 | . 2 2 2 . Hottest 40 | . 40 40 40 . Shots Fired 229 | . 123 75 31 . Gun 229 | . 123 75 31 . Cannon . | . . . . . Launcher . | . . . . . Special . | . . . . . Kinetic 229 | . 123 75 31 . Thermal . | . . . . . Explosive . | . . . . . Electromagnetic . | . . . . . Robot Hit Streak 16 | . 11 16 10 . Robot Miss Streak 6 | . 6 5 2 . Penetration Max . | . . . . . Secondary Targets 3 | . 1 2 . . Max Gunslinging Chain 1 | . 1 1 . . Shots Hit Robots 148 | . 77 51 20 . Core Hits 60 | . 31 21 8 . Critical Kills . | . . . . . Critical Parts Destroyed 1 | . 1 . . . Critical Strikes 1 | . 1 . . . Destroy 1 | . 1 . . . Melee Attacks . | . . . . . Impact . | . . . . . Slashing . | . . . . . Piercing . | . . . . . Sneak Attacks . | . . . . . Combat Hostiles . | . . . . . Follow-up Attacks . | . . . . . Damage Inflicted 1558 | . 934 486 138 . Guns 1558 | . 934 486 138 . Cannons . | . . . . . Explosions . | . . . . . Melee . | . . . . . Ramming . | . . . . . Kinetic 1558 | . 934 486 138 . Thermal . | . . . . . Explosive . | . . . . . Electromagnetic . | . . . . . Impact . | . . . . . Slashing . | . . . . . Piercing . | . . . . . Highest Corruption 3 | . 3 3 3 3 Average Corruption 2 | . 2 3 3 3 Corruption Purged . | . . . . . Corruption Blocked . | . . . . . Effects 36 | . 6 11 18 1 Message Errors 6 | . . 1 5 . Matter Fused 5 | . 2 1 2 . Heat Flow Errors 4 | . . . 3 1 Energy Discharges 5 | . . 3 2 . Parts Rejected 2 | . 1 . 1 . Data Loss (minor) 6 | . . 4 2 . Misfires 6 | . 3 . 3 . Weapon Failures 2 | . . 2 . . Overload Shots . | . . . . . Overflow Damage . | . . . . . Projectiles . | . . . . . Explosions . | . . . . . Melee . | . . . . . Knockbacks . | . . . . . Impact . | . . . . . Kinetic . | . . . . . Secondary . | . . . . . Self-Inflicted Damage . | . . . . . Shots . | . . . . . Rammed . | . . . . . Targets Rammed . | . . . . . Kicked . | . . . . . Crushed . | . . . . . Highest Temperature 256 | . 20 52 256 166 Average Temperature 56 | . 3 11 124 148 Received Heat Transfer 537 | . 246 291 . . Effects 1 | . . . 1 . Energy Bleed 1 | . . . 1 . Siege Activations . | . . . . . Robots Corrupted . | . . . . . Combat Hostiles . | . . . . . Parts Fried . | . . . . . Impact Corruptions . | . . . . . Robots Melted . | . . . . . Combat Hostiles . | . . . . . Parts Melted . | . . . . . Heat Transferred . | . . . . . Parts Sabotaged . | . . . . . Parts Stolen . | . . . . . Parts Stripped . | . . . . . Power Chain Reactions . | . . . . . Missiles Intercepted . | . . . . . Alert | -11 -10 -10 -10 -9 ------- Run | Scr Mat Min Exi Min Peak Influence 187 | . 187 168 . 59 Initial 3 | . . 3 . . Average 54 | . 59 54 . 37 Maximum Alert Level . | . . . . . Low Security (%) 100 | 100 100 100 . 100 Level 1 . | . . . . . Level 2 . | . . . . . Level 3 . | . . . . . Level 4 . | . . . . . Level 5 . | . . . . . High Security . | . . . . . Max Security . | . . . . . Squads Dispatched 3 | . 3 . . . Investigation 1 | . 1 . . . Extermination . | . . . . . Reinforcement 2 | . 2 . . . Assault . | . . . . . Garrison . | . . . . . Intercept . | . . . . . Searches Triggered . | . . . . . Construction Impeded . | . . . . . Haulers Reinforced . | . . . . . Active Scanning Responses . | . . . . . Cargo Convoy Interrupts . | . . . . . Stealth | -11 -10 -10 -10 -9 --------- Run | Scr Mat Min Exi Min Distress Signals 4 | . 4 . . . Communications Jammed . | . . . . . Distress Signals . | . . . . . Times Spotted 34 | . 18 10 . 6 Peak Tracking Total 4 | . 4 3 . 4 Tactical Retreats 1 | . 1 . . . Traps | -11 -10 -10 -10 -9 ------- Run | Scr Mat Min Exi Min Traps Triggered 3 | . 3 . . . Indirectly . | . . . . . Trap Hack Attempts . | . . . . . Triggered . | . . . . . Disarmed . | . . . . . Reprogrammed . | . . . . . Reused . | . . . . . Traps Extracted . | . . . . . Installed . | . . . . . Triggered . | . . . . . Machines | -11 -10 -10 -10 -9 ---------- Run | Scr Mat Min Exi Min Machines Disabled 1 | . . 1 . . Max in Single Turn 1 | . . 1 . . Machines Sabotaged . | . . . . . Garrisons Compromised . | . . . . . Overloaded Fab Kills . | . . . . . Hacking | -11 -10 -10 -10 -9 --------- Run | Scr Mat Min Exi Min Machines Accessed 6 | . 4 1 1 . Terminals 5 | . 4 1 . . Fabricators . | . . . . . Repair Stations . | . . . . . Recycling Units . | . . . . . Scanalyzers . | . . . . . Garrison Access . | . . . . . Total Hacks 10 | . 8 1 1 . Successful 5 | . 3 1 1 . Failed 5 | . 5 . . . Catastrophic . | . . . . . Database Lockouts . | . . . . . Manual 11 | . 8 1 2 . Terminals 9 | . 8 1 . . Fabricators . | . . . . . Repair Stations . | . . . . . Recycling Units . | . . . . . Scanalyzers . | . . . . . Garrison Access . | . . . . . Terminal Hacks 1 | . . . 1 . EX-Prototype ID Bank 1 | . . . 1 . Fabricator Hacks . | . . . . . Repair Station Hacks . | . . . . . Recycling Unit Hacks . | . . . . . Scanalyzer . | . . . . . Garrison Access Hacks . | . . . . . Unauthorized Hacks 4 | . 3 1 . . Terminals 4 | . 3 1 . . Botnet 3 | . 2 1 . . Operators 1 | . 1 . . . Fabricators . | . . . . . Repair Stations . | . . . . . Recycling Units . | . . . . . Scanalyzers . | . . . . . Garrison Access . | . . . . . Data Cores Recovered . | . . . . . Used . | . . . . . Hacking Detections 3 | . 3 . . . Full Trace Events . | . . . . . Feedback Events . | . . . . . Feedback Blocked . | . . . . . Robot Schematics Acquired . | . . . . . Robots Built . | . . . . . Authchips . | . . . . . Time . | . . . . . Total Robot Build Rating . | . . . . . Part Schematics Acquired . | . . . . . Parts Built . | . . . . . Authchips . | . . . . . Time . | . . . . . Total Part Build Rating . | . . . . . Parts Repaired . | . . . . . Time . | . . . . . Parts Recycled . | . . . . . Recycled Matter . | . . . . . Retrieved Matter . | . . . . . Retrieved Components . | . . . . . Parts Scanalyzed . | . . . . . Part Schematics Acquired . | . . . . . Parts Damaged . | . . . . . Bothacking | -11 -10 -10 -10 -9 ------------ Run | Scr Mat Min Exi Min Used RIF Installer . | . . . . . Robots Hacked . | . . . . . Non-combat . | . . . . . Combat . | . . . . . Robot Hacks Applied . | . . . . . Relay Couplers Released . | . . . . . Fabnet Peak Effective % . | . . . . . Robots Rewired 5 | . . . 5 . Allies Hacked . | . . . . . Hacks Repelled . | . . . . . Allies | -11 -10 -10 -10 -9 -------- Run | Scr Mat Min Exi Min Total Allies 5 | . . . 5 . Largest Group 5 | . . . 5 4 Highest-Rated Group 53 | . . . 53 45 Highest-Rated Ally 21 | . . . 21 21 Total Orders . | . . . . . Ally Attacks 13 | . . . . 13 Total Damage 141 | . . . . 141 Kills 4 | . . . . 4 Allies Corrupted . | . . . . . Allies Melted . | . . . . . Intel | -11 -10 -10 -10 -9 ------- Run | Scr Mat Min Exi Min Robot Analysis Total . | . . . . . Derelict Logs Recovered . | . . . . . Drone Launches . | . . . . . Drone Recoveries . | . . . . . Exploration | -11 -10 -10 -10 -9 ------------- Run | Scr Mat Min Exi Min Turns Passed 2521 | 73 940 547 919 42 Spaces Moved 1497 | 42 455 288 688 24 Core 1 | 1 . . . . Treads 20 | 20 . . . . Legs 1476 | 21 455 288 688 24 Wheels . | . . . . . Hover . | . . . . . Flight . | . . . . . Fastest Speed 50 | 50 120 120 120 120 Average Speed 120 | 139 120 120 120 120 Slowest Speed 190 | 190 120 120 120 120 Overloaded Moves . | . . . . . Propulsion Burnouts . | . . . . . Robots Hopped . | . . . . . Cave-ins Triggered . | . . . . . Exploration Rate (%) 44 | 4 71 44 91 10 Regions Visited 4 Branch Regions 3 Pre-discovered Areas . | . . . . . Known Exits Taken . | . . . . . Unknown Exits Taken 4 | 1 1 1 1 . Scrap Searched 1 | . . 1 . . Spaces Dug . | . . . . . Terrain Destroyed . | . . . . . Melee . | . . . . . Projectile . | . . . . . AOE . | . . . . . Terrain Rammed . | . . . . . Walls Destroyed . | . . . . . Machines Disabled . | . . . . . Actions | -11 -10 -10 -10 -9 --------- Run | Scr Mat Min Exi Min Total 2018 | 53 738 427 762 38 Wait 259 | . 183 62 . 14 Move 1493 | 41 454 287 687 24 Hop . | . . . . . Pick Up 26 | 1 16 2 7 . Fast Attach 16 | 8 4 2 2 . Attach . | . . . . . Detach . | . . . . . Swap 23 | 1 8 10 4 . Drop 36 | 2 13 10 11 . Fire 128 | . 60 54 14 . Melee . | . . . . . Ram . | . . . . . Kick . | . . . . . Crush . | . . . . . Escape Stasis . | . . . . . Rewire 37 | . . . 37 . Trap . | . . . . . Miscellaneous . | . . . . . Route ------- -11/Scrapyard -10/Materials (discovered 3 exits: [*Mat x2] / *Min) -10/Mines (discovered 2 exits: [*Mat] / *Exi) -10/Exiles (discovered 2 exits: [*Min x2]) -9/Mines (discovered 1 exit: [*Mat]) History --------- Turn | Location | Event 19 | -11/Scrapyard | Discovered new exit (range 15) 74 | -11/Scrapyard | Entered Materials 285 | -10/Materials | Discovered new exit (range 17) 308 | -10/Materials | Build established: Mutant 709 | -10/Materials | Build established: Scavenger-Mutant 723 | -10/Materials | Discovered new exit (range 16) 1004 | -10/Materials | Discovered new exit (range 10) 1014 | -10/Materials | Entered Mines 1082 | -10/Mines | Deemed a non-threat by the Exiles lab entrance 1082 | -10/Mines | Discovered new exit (range 5) 1110 | -10/Mines | Core integrity fell below 50% 1195 | -10/Mines | Discovered new exit (range 9) 1246 | -10/Mines | Excavation squad dispatched 1246 | -10/Mines | A large section of the Mines collapsed 1467 | -10/Mines | Core integrity fell below 20% 1561 | -10/Mines | Entered Exiles 1561 | -10/Exiles | Found Exiles lab destroyed 1579 | -10/Exiles | Discovered new exit (range 17) 1925 | -10/Exiles | Discovered new exit (range 14) 2053 | -10/Exiles | Opened EX-Vault 2064 | -10/Exiles | Found YOLO Cannon 2480 | -10/Exiles | Entered Mines 2480 | -9/Mines | Accompanied by 5 allies 2522 | -9/Mines | Assembled infested the area 2522 | -9/Mines | Discovered new exit (range 5) 2522 | -9/Mines | Destroyed by D-53 Grenadier with Mini Grenade Launcher Last Messages --------------- 02504_ R-06 Scavenger collects Flight Unit. 02504_ K-01 Serf collects debris. 02506_ R-06 Scavenger collects Aluminum Leg. 02507_ K-01 Serf collects debris. 02509_ R-06 Scavenger collects Sml. Laser. 02510_ R-06 Scavenger collects Lgt. Ion Engine. 02512_ K-01 Serf collects debris. 02513_ R-06 Scavenger collects Lgt. Assault Rifle. 02514_ K-01 Serf collects debris. 02515_ R-06 Scavenger collects Heat Sink. 02516_ K-01 Serf collects debris. 02518_ R-06 Scavenger collects Flight Unit. 02519_ System corrupted: Heat flow error (+186). 02519_ K-01 Serf collects debris. 02522_ ALERT: Infestation in the mines, dispatching Demolisher response squad. 02522_ EXIT=FOUND 02522_ C-30 ARC bursts open, deploying its payload. 02522_ D-53 Grenadier unfolds itself. 02522_ Mercenary 1b destroyed. Map ----- +----------------------------------------------------+ | ????????????????????????????????????????? | | ????????????????????????????????????????? | | ????????????????????????????????????????? | | ????????????????????????????????????????? | | ????????????????????????????????????????? | | ????????????????????????????????????????? | | ????????????????????????????????????????? | | ????????????????????????????????????????? | | ????????????????????????????????????????? | | ????????????????????????????????????????? | | ????????????????????????????????????????? | | ????????????????????????????????????????? | | ????????????????????????????????????????? | | ????????????????????????????????????????? | | ????????????????????????????????????????? | | ????????????????????????????????????????? | | ????????????????????????????????????????? | | ????????????????????????????????????????? | | ????????????????????????????????????????? | | ????????????????###?????????????????????? | | ???????????????? #?????????????????????? | | ??#############?# ##????????????????????? | | ??# ## #????????????????????? | | ??# #????????????????????? | | ??# k #????????????????????? | | ????? """ @ #????????????????????? | | ????? """ d% #????????????????????? | | ????? """ d #% #????????????????????? | | ???? ## ##????????????????????? | | ???############?#h#?????????????????????? | | ????????????????# #?????????????????????? | | ??##########??### ##????????????????????? | | ??# #??# ##???????????????????? | | ??# #??# % %#???????????????????? | | ??# ####%% #???????????????????? | | ??# =%=*%% #???????????????????? | | ??# """ ######*=##???????????????????? | | ??# """ #????####????????????????????? | | ??# """ #????????????????????????????? | | ??##########????????????????????????????? | | ????????????????????????????????????????? | | ????????????????????????????????????????? | | | | | | | | | | | | | | | | | +----------------------------------------------------+ Best States ------------- Heat Dissipation 25 Energy Generation 14 Energy Capacity 250 Matter Stores 300 Matter Capacity 300 Sight Range 18 Terrain Scan Density 10 Evasion (%) 55 Recoil Reduction 2 Authchip Count 2 Item Schematics ----------------- None Robot Schematics ------------------ None Fabricated ------------ Nothing Alien Tech Used ----------------- None Achievements -------------- None Challenges ------------ None Game ------ Seed HypercooledSpreadLog Manual? 0 Play Time 00:11:58 Cumulative 344.2 hours Start 2022.06.22 @ 21:54:42 End 2022.06.22 @ 22:07:09 Sessions 1 Manual Loads 0 Difficulty Rogue Special Mode None Game No. 615 Rogue 460 Adventurer 148 Explorer 7 Win Type - Total 12 Types 10/0/1/1/0/0/0/0/0 Lore% 75 Gallery% 87 Achievement% 68 Wizard Run 0 Options --------- ASCII 0 Keyboard 0 Movement Numpad Keybinds 0 Fullscreen 1 Font 18/SmallcapsGlow Map View 76x50 Tactical HUD 1 Map Filters NONE Filters NONE Steam 1 RUN: a0d93cc2-28eb-4d08-ba3c-170f6de878c5